bitfinex-derivatives/quotes_SOLF0:USTF0_20250202
["timestamp","ask_amount","ask_price","bid_price","bid_amount"]
[1738538706782,41.86101095,198.21,198.18,4.671e-05]
[1738538706978,41.86101095,198.21,198.0,41.82360577]
[1738538706979,0.03740518,198.21,198.0,41.82360577]
[1738538707182,41.82360577,198.29,198.06,41.82360577]
[1738538707380,5.0449,198.27,198.15,5.0477]
[1738538707685,3.2407,198.32,198.1,41.82360577]
[1738538707883,46.86800577,198.29,198.2,5.0465]
[1738538708090,0.03639905,198.23,198.19,0.03475894]
[1738538708384,0.03639905,198.23,198.21,5.0462]
[1738538708584,41.82360577,198.37,198.18,41.82360577]
[1738538708790,3.1561,198.4,198.22,41.82360577]
[1738538708991,3.1561,198.4,198.36,5.0423]
[1738538709181,3.1058,198.5,198.3,41.82360577]
[1738538709384,53.84864759,198.53,198.34,41.82360577]
[1738538709587,20.19324284,198.55,198.38,40.2803854]
[1738538709786,20.19324284,198.55,198.42,41.82360577]
[1738538710089,20.19324284,198.55,198.46,41.82360577]
[1738538710285,20.19324284,198.55,198.5,41.82360577]
[1738538710498,36.34064759,198.56,198.5,41.82360577]
[1738538710692,50.56749846,198.58,198.54,41.82360577]
[1738538710988,20.36975417,198.71,198.55,41.82360577]
[1738538711186,20.36975417,198.71,198.53,99.82]
[1738538711491,6.087e-05,198.58,198.54,0.03387035]
[1738538711790,20.36975417,198.71,198.46,41.82360577]
[1738538711791,41.82360577,198.66,198.46,41.82360577]
[1738538711987,41.82360577,198.7,198.46,41.82360577]
[1738538712489,5.0351,198.66,198.44,41.82360577]
[1738538712790,0.03331192,198.6,198.56,0.03228318]
[1738538713190,0.03331192,198.6,198.38,99.82]
[1738538713191,41.82360577,198.58,198.38,99.82]
[1738538713383,5.0385,198.52,198.39,5.0418]
[1738538713783,5.0385,198.52,198.38,99.82]
[1738538713784,5.8821,198.57,198.38,99.82]
[1738538713985,5.8821,198.57,198.44,41.82360577]
[1738538714189,5.8821,198.57,198.4,41.82360577]
[1738538714493,0.03245071,198.52,198.49,0.03516992]
[1738538714897,3.2477,198.61,198.44,41.82360577]
[1738538715094,3.2477,198.61,198.5,5.0388]
[1738538715293,0.03455459,198.52,198.49,0.03505693]
[1738538715491,5.459e-05,198.52,198.49,41.8586627]
[1738538715692,5.0347,198.67,198.49,41.82360577]
[1738538715890,5.0347,198.67,198.54,41.82360577]
[1738538716093,41.82360577,198.74,198.5,41.82360577]
[1738538716289,41.82360577,198.74,198.54,41.82360577]
[1738538716491,5.8821,198.75,198.54,41.82360577]
[1738538716887,0.03644035,198.66,198.62,0.03803316]
[1738538717293,5.8821,198.75,198.54,41.82360577]
[1738538717497,5.0343,198.69,198.58,5.0368]
[1738538717697,0.03367446,198.66,198.62,0.03279768]
[1738538718192,60.55803844,199.08,198.62,41.82360577]
[1738538718193,41.82360577,198.85,198.62,41.82360577]
[1738538718398,9.3565,198.87,198.71,41.82360577]
[1738538718597,9.3565,198.87,198.66,41.82360577]
[1738538718598,0.03461007,198.75,198.72,0.03584359]
[1738538718897,3.0921,198.95,198.74,41.82360577]
[1738538719098,8.1198,198.95,198.83,5.0306]
[1738538719293,9.3565,198.98,198.82,41.82360577]
[1738538719593,9.3565,198.98,198.86,41.82360577]
[1738538719895,3.1377,199.09,198.94,41.82360577]
[1738538720192,6.4996,199.19,199.02,41.82360577]
[1738538720390,0.92318532,199.18,199.02,41.82360577]
[1738538720589,8.407e-05,199.03,199.02,5.0258]
[1738538720794,6.4996,199.19,198.99,41.82360577]
[1738538721191,6.4996,199.19,199.08,5.0241]
[1738538721399,3.1377,199.24,199.07,41.82360577]
[1738538721597,3.1377,199.24,199.11,41.82360577]
[1738538721900,41.82360577,199.41,199.2,41.82360577]
[1738538722094,41.82360577,199.45,199.24,41.82360577]
[1738538722295,41.82360577,199.45,199.25,99.6]
[1738538722497,92.22090895,199.54,199.25,99.6]
[1738538722700,41.82360577,199.76,199.39,41.82360577]
[1738538722701,41.82360577,199.61,199.39,41.82360577]
[1738538722897,0.92177213,199.6,199.43,41.82360577]
[1738538723201,9.3189,199.64,199.35,6.22]
[1738538723202,9.3189,199.64,199.47,41.82360577]
[1738538723395,9.3189,199.64,199.48,0.0372875]
[1738538723396,0.03497026,199.52,199.48,0.0372875]
[1738538723898,9.3189,199.64,199.48,18.40455904]
[1738538724304,0.03557846,199.52,199.48,18.44055253]
[1738538724599,0.03557846,199.52,199.32,99.6]
[1738538724903,5.0138,199.5,199.36,5.017]
[1738538725201,9.3189,199.64,199.43,41.82360577]
[1738538725400,5.0108,199.62,199.47,46.83790577]
[1738538725597,5.0108,199.62,199.51,41.82360577]
[1738538725896,2.9281,199.66,199.43,48.04360577]
[1738538725897,0.03729182,199.56,199.53,0.03642016]
[1738538726400,5.0116,199.59,199.43,53.05900577]
[1738538726596,2.9281,199.66,199.43,48.04360577]
[1738538726900,0.03517691,199.56,199.53,0.03201707]
[1738538727096,41.82360577,199.55,199.35,41.82360577]
[1738538727400,41.82360577,199.5,199.31,41.82360577]
[1738538727600,41.82360577,199.5,199.27,6.22]
[1738538727601,41.82360577,199.5,199.27,48.04360577]
[1738538727992,41.82360577,199.54,199.31,41.82360577]
[1738538728192,41.82360577,199.54,199.35,41.82360577]
[1738538728505,0.03478893,199.4,199.37,0.03233429]
[1738538729001,41.82360577,199.54,199.27,48.04360577]
[1738538729202,0.03859621,199.4,199.37,0.03451888]
[1738538729801,6.3285,199.55,199.32,41.82360577]
[1738538729997,0.03248883,199.4,199.36,41.82360577]
[1738538730304,0.03248883,199.4,199.37,0.03637362]
[1738538730601,6.3285,199.55,199.36,41.82360577]
[1738538730900,7.616e-05,199.4,199.37,0.03542627]
[1738538731198,41.82360577,199.65,199.32,41.82360577]
[1738538731394,47.95280577,199.65,199.4,41.82360577]
[1738538731599,41.82360577,199.59,199.4,41.82360577]
[1738538731906,41.82360577,199.51,199.29,41.82360577]
[1738538732099,41.82360577,199.47,199.28,8.9544]
[1738538732397,5.0178,199.34,199.28,8.9544]
[1738538732601,0.03796877,199.42,199.28,8.9544]
[1738538732803,48.02360577,199.47,199.36,0.03672343]
[1738538733000,5.0169,199.38,199.36,0.03672343]
[1738538733201,0.03236176,199.37,199.36,0.03672343]
[1738538735103,0.03236176,199.37,199.24,41.82360577]
[1738538735503,5.0206,199.23,199.16,41.82360577]
[1738538735801,5.0206,199.23,199.12,41.82360577]
[1738538736103,41.82360577,199.3,199.08,41.82360577]
[1738538736408,0.03197772,199.19,199.16,0.03497165]
[1738538736904,41.82360577,199.3,199.12,41.82360577]
[1738538737105,41.82360577,199.3,199.08,41.82360577]
[1738538737300,0.03239558,199.19,199.16,0.03669966]
[1738538737506,0.03239558,199.19,199.04,41.82360577]
[1738538737706,41.82360577,199.22,199.0,41.82360577]
[1738538738004,41.82360577,199.18,198.96,41.82360577]
[1738538738204,41.82360577,199.06,198.84,41.82360577]
[1738538738598,41.82360577,199.1,198.88,41.82360577]
[1738538738905,0.03354188,198.97,198.93,0.03328314]
[1738538739298,41.82360577,198.98,198.76,41.82360577]
[1738538739499,41.82360577,198.94,198.76,41.82360577]
[1738538739703,5.0308,198.83,198.69,5.0339]
[1738538739900,41.82360577,198.82,198.62,41.82360577]
[1738538740100,41.82360577,198.82,198.63,0.87319341]
[1738538740408,41.82360577,198.82,198.62,41.82360577]
[1738538740804,5.07062041,198.74,198.71,0.03637257]
[1738538741104,0.03762041,198.74,198.71,0.03637257]
[1738538741510,41.82360577,198.74,198.54,41.82360577]
[1738538741910,5.0343,198.69,198.57,5.0371]
[1738538742208,41.82360577,198.7,198.5,41.82360577]
[1738538742408,41.82360577,198.66,198.51,5.0386]
[1738538742600,41.82360577,198.74,198.54,41.82360577]
[1738538743206,41.82360577,198.69,198.44,41.82360577]
[1738538743509,41.82360577,198.61,198.4,41.82360577]
[1738538743706,41.82360577,198.53,198.4,5.0414]
[1738538743905,41.82360577,198.49,198.32,41.82360577]
[1738538744205,41.82360577,198.49,198.38,5.042]
[1738538744412,41.82360577,198.53,198.32,41.82360577]
[1738538744804,0.03260604,198.45,198.42,0.0347746]
[1738538745409,41.82360577,198.53,198.32,41.82360577]
[1738538745712,0.03184745,198.45,198.42,0.03570787]
[1738538746309,41.82360577,198.46,198.25,99.5]
[1738538746514,41.82360577,198.45,198.26,41.82360577]
[1738538746807,41.82360577,198.45,198.0,199.82360577]
[1738538746808,41.82360577,198.41,198.22,41.82360577]
[1738538747004,41.82360577,198.41,198.18,41.82360577]
[1738538747404,41.82360577,198.36,198.12,41.82360577]
[1738538747605,41.82360577,198.27,198.07,41.82360577]
[1738538747911,0.03702446,198.31,198.11,41.82360577]
[1738538748111,41.82360577,198.33,198.22,0.0351426]
[1738538748306,41.82360577,198.27,198.07,41.82360577]
[1738538748503,0.0382423,198.23,198.07,41.82360577]
[1738538748904,41.82360577,198.27,198.07,41.82360577]
[1738538749313,41.82360577,198.31,198.11,41.82360577]
[1738538749712,41.82360577,198.31,198.16,5.0475]
[1738538749912,0.0363892,198.19,198.07,41.82360577]
[1738538750304,41.82360577,198.27,198.07,41.82360577]
[1738538750613,6.814e-05,198.15,198.07,41.82360577]
[1738538751111,41.82360577,198.27,198.07,41.82360577]
[1738538751309,41.82360577,198.33,198.07,41.82360577]
[1738538751512,41.82360577,198.28,198.07,41.82360577]
[1738538752112,3.778e-05,198.22,198.18,0.03583061]
[1738538752307,3.778e-05,198.22,198.21,5.0462]
[1738538752713,41.82360577,198.37,198.19,41.82360577]
[1738538752908,5.0433,198.33,198.23,5.0457]
[1738538753116,41.82360577,198.41,198.19,41.82360577]
[1738538753315,41.82360577,198.45,198.27,41.82360577]
[1738538753514,0.03632962,198.3,198.26,0.03790103]
[1738538753816,41.82360577,198.29,198.26,0.03790103]
[1738538754011,41.82360577,198.29,198.11,41.82360577]
[1738538754210,41.82360577,198.41,198.11,41.82360577]
[1738538754211,41.82360577,198.33,198.11,41.82360577]
[1738538754412,0.03569106,198.29,198.26,0.03278906]
[1738538754607,41.82360577,198.28,198.07,41.82360577]
[1738538755414,41.82360577,198.33,198.11,41.82360577]
[1738538755608,41.82360577,198.33,198.07,41.82360577]
[1738538755809,41.82360577,198.26,198.07,41.82360577]
[1738538756017,5.0463,198.22,198.11,5.0488]
[1738538756212,0.03646279,198.24,198.04,105.96]
[1738538756511,41.82360577,198.3,198.07,41.82360577]
[1738538756715,41.82360577,198.34,198.11,41.82360577]
[1738538757114,41.82360577,198.41,198.11,41.82360577]
[1738538757115,41.82360577,198.29,198.11,41.82360577]
[1738538757308,0.03327287,198.24,198.07,41.82360577]
[1738538757818,41.82360577,198.24,198.04,99.74]
[1738538758215,0.03515679,198.17,198.06,41.82360577]
[1738538758819,0.03515679,198.17,198.15,5.0478]
[1738538759009,5.679e-05,198.17,198.15,5.0478]
[1738538759510,5.679e-05,198.17,198.04,99.74]
[1738538759912,41.82360577,198.25,198.04,99.74]
[1738538760511,41.82360577,198.25,198.09,0.03529968]
[1738538760715,5.0462,198.22,198.14,5.0481]
[1738538760918,41.82360577,198.25,198.09,0.03529968]
[1738538761117,41.82360577,198.21,198.07,5.0497]
[1738538761324,41.82360577,198.17,197.93,41.82360577]
[1738538761918,0.03252428,198.07,198.03,0.03435713]
[1738538762118,0.03252428,198.07,197.7,1.79680682]
[1738538762119,83.64721154,198.04,197.7,1.79680682]
[1738538762315,41.82360577,197.93,197.74,41.82360577]
[1738538763021,41.82360577,197.89,197.66,41.82360577]
[1738538763221,41.82360577,197.85,197.66,41.82360577]
[1738538763527,41.85946302,197.85,197.66,41.82360577]
[1738538763719,41.82360577,198.04,197.8,41.82360577]
[1738538763923,5.052,198.0,197.88,5.0546]
[1738538764220,41.82360577,198.09,197.84,41.82360577]
[1738538764424,0.92862722,198.08,197.84,41.82360577]
[1738538764821,41.82360577,198.01,197.8,41.82360577]
[1738538765219,0.03704339,197.98,197.94,7.782e-05]
[1738538765621,41.82360577,198.01,197.8,41.82360577]
[1738538765820,41.82360577,197.97,197.8,41.82360577]
[1738538766024,41.82360577,197.97,197.77,5.0575]
[1738538766225,41.82360577,197.93,197.72,41.82360577]
[1738538766422,41.82360577,198.01,197.8,41.82360577]
[1738538766624,0.03833721,197.89,197.83,5.056]
[1738538767126,41.82360577,197.97,197.76,41.82360577]
[1738538767531,0.0357977,197.88,197.76,41.82360577]
[1738538767935,5.0555,197.86,197.75,5.0579]
[1738538768129,2.958,197.85,197.72,41.82360577]
[1738538768628,0.0373491,197.82,197.69,3.1897]
[1738538768833,0.0373491,197.82,197.68,42.24251664]
[1738538769029,2.958,197.85,197.68,42.24251664]
[1738538769228,2.958,197.85,197.73,5.0585]
[1738538769732,0.0375675,197.77,197.68,42.24251664]
[1738538769931,6.3641,197.84,197.68,42.24251664]
[1738538770327,0.03513343,197.74,197.64,42.24251664]
[1738538770728,6.3641,197.84,197.64,42.24251664]
[1738538771030,0.03414385,197.71,197.64,42.24251664]
[1738538771427,6.22,197.81,197.64,42.24251664]
[1738538771631,48.46251664,197.81,197.64,42.24251664]
[1738538771827,0.03399196,197.69,197.61,5.0615]
[1738538772033,0.03399196,197.69,197.57,3.1897]
[1738538772328,5.0602,197.67,197.57,5.0625]
[1738538772535,42.24251664,197.69,197.52,42.24251664]
[1738538772536,0.03589859,197.65,197.52,42.24251664]
[1738538772835,42.27841523,197.65,197.48,42.24251664]
[1738538773030,42.24251664,197.65,197.47,2.9733]
[1738538773430,0.03394172,197.58,197.53,5.0636]
[1738538773730,0.03394172,197.58,197.47,2.9733]
[1738538773731,0.03394172,197.58,197.48,3.0545]
[1738538774232,0.03394172,197.58,197.4,42.24251664]
[1738538774433,42.24251664,197.57,197.35,12.3094]
[1738538774732,42.24251664,197.53,197.35,12.3094]
[1738538774931,42.24251664,197.53,197.35,3.0545]
[1738538775131,0.03234991,197.48,197.38,5.0675]
[1738538775435,0.03234991,197.48,197.26,42.24251664]
[1738538775632,47.30831664,197.45,197.26,42.24251664]
[1738538775837,42.24251664,197.53,197.3,42.24251664]
[1738538776033,5.0646,197.5,197.37,5.0678]
[1738538776233,42.24251664,197.49,197.38,6.1953]
[1738538776439,42.24251664,197.53,197.34,42.24251664]
[1738538776639,42.24251664,197.53,197.01,120.01936487]
[1738538776640,42.24251664,197.37,197.01,120.01936487]
[1738538776941,42.24251664,197.33,197.13,1.01455892]
[1738538777330,42.24251664,197.18,197.01,77.77684823]
[1738538777537,3.2337,197.17,197.01,77.77684823]
[1738538778236,42.24251664,197.1,197.01,77.77684823]
[1738538778435,42.24251664,197.06,196.82,3.0182]
[1738538778630,42.24251664,196.97,196.82,3.0182]
[1738538778829,42.24251664,197.05,196.83,42.24251664]
[1738538779030,42.24251664,197.01,196.83,3.0122]
[1738538779235,0.03255081,196.91,196.81,77.77684823]
[1738538779637,42.24251664,197.01,196.81,77.77684823]
[1738538779936,42.24251664,196.97,196.81,77.77684823]
[1738538780138,42.24251664,197.02,196.81,77.77684823]
[1738538780338,42.24251664,196.94,196.81,77.77684823]
[1738538780730,1.01476482,197.09,196.81,77.77684823]
[1738538780731,42.24251664,197.02,196.81,77.77684823]
[1738538780936,42.24251664,197.02,196.88,5.0802]
[1738538781238,1.01476482,197.09,196.95,42.24251664]
[1738538781538,45.25931664,197.26,197.05,5.076]
[1738538781739,45.25931664,197.26,197.03,42.24251664]
[1738538782038,42.24251664,197.14,196.9,42.24251664]
[1738538782341,42.24251664,197.1,196.9,42.24251664]
[1738538782539,0.03306574,197.16,196.9,42.24251664]
[1738538782840,45.45271664,197.26,197.04,42.24251664]
[1738538783042,5.0713,197.24,197.1,5.0747]
[1738538783343,5.812e-05,197.05,196.97,42.24251664]
[1738538783543,5.0717,197.23,197.11,5.0744]
[1738538783842,5.0717,197.23,197.01,42.24251664]
[1738538783843,3.2102,197.26,197.15,0.03699646]
[1738538784036,14.5191,197.31,197.17,5.0728]
[1738538784233,42.24251664,197.34,197.14,42.24251664]
[1738538784439,42.24251664,197.26,197.02,3.1695]
[1738538784638,5.0726,197.19,197.07,5.0754]
[1738538784839,42.24251664,197.22,196.97,42.24251664]
[1738538785035,42.24251664,197.18,196.97,42.24251664]
[1738538785235,42.24251664,197.14,197.12,4.886e-05]
[1738538785439,42.24251664,197.23,196.98,42.24251664]
[1738538785742,0.03779975,197.11,196.98,42.24251664]
[1738538785942,0.03779975,197.11,196.94,42.24251664]
[1738538786148,42.24251664,197.15,196.97,5.0775]
[1738538786443,42.24251664,197.19,196.99,42.24251664]
[1738538786647,8.669e-05,197.04,197.02,5.0763]
[1738538786847,42.24251664,197.23,197.03,42.24251664]
[1738538787049,42.24251664,197.23,196.99,42.24251664]
[1738538787348,42.24251664,197.23,197.03,42.24251664]
[1738538787551,12.0754,197.25,196.99,42.24251664]
[1738538787552,42.24251664,197.19,196.99,42.24251664]
[1738538787746,42.24251664,197.15,196.94,42.24251664]
[1738538787945,42.24251664,197.19,196.98,42.24251664]
[1738538788149,42.24251664,197.19,197.07,5.075]
[1738538788349,42.24251664,197.15,197.03,0.03618835]
[1738538788655,0.03589833,197.15,197.02,42.24251664]
[1738538789049,12.0754,197.25,197.07,0.03282102]
[1738538789247,1.01353063,197.33,197.21,5.0712]
[1738538789455,0.93220101,197.32,197.14,42.24251664]
[1738538789747,42.24251664,197.31,197.1,42.24251664]
[1738538789956,42.24251664,197.27,197.08,6.2905]
[1738538790154,0.03457475,197.29,197.1,42.24251664]
[1738538790351,1.01353063,197.33,197.23,5.0708]
[1738538790551,42.24251664,197.31,197.1,42.24251664]
[1738538790749,42.24251664,197.27,197.06,42.24251664]
[1738538790950,3.0121,197.26,197.06,42.24251664]
[1738538791251,9.2255,197.26,197.06,42.24251664]
[1738538791449,6.648e-05,197.18,197.17,5.0723]
[1738538791648,6.648e-05,197.18,197.15,0.0337617]
[1738538791950,5.0724,197.18,197.07,5.0749]
[1738538792153,42.24251664,197.19,196.98,42.24251664]
[1738538792352,42.24251664,197.23,197.02,42.24251664]
[1738538792649,9.2255,197.26,197.12,42.24251664]
[1738538793046,1.01353063,197.33,197.12,42.24251664]
[1738538793251,42.24251664,197.39,197.16,42.24251664]
[1738538793450,42.24251664,197.35,197.12,45.26401664]
[1738538793951,42.24251664,197.31,197.12,42.24251664]
[1738538794153,1.01342791,197.35,197.12,42.24251664]
[1738538794355,6.644e-05,197.25,197.22,0.03588298]
[1738538794858,42.24251664,197.3,197.08,42.24251664]
[1738538794859,8.892,197.29,197.08,42.24251664]
[1738538795049,12.0016,197.29,197.08,42.24251664]
[1738538795248,12.0016,197.29,197.12,42.24251664]
[1738538795754,12.0016,197.29,197.17,0.03399167]
[1738538795755,7.692e-05,197.2,197.17,0.03399167]
[1738538796157,7.692e-05,197.2,197.18,5.0722]
[1738538796362,3.1096,197.33,197.12,42.24251664]
[1738538796563,42.24251664,197.3,197.08,42.24251664]
[1738538796753,2.9619,197.29,197.08,42.24251664]
[1738538797161,0.03417305,197.21,197.17,0.03401972]
[1738538797660,42.24251664,197.26,197.08,42.24251664]
[1738538797863,9.132,197.29,197.08,42.24251664]
[1738538798156,0.03380314,197.21,197.17,0.03563663]
[1738538798654,42.24251664,197.18,196.95,42.24251664]
[1738538798861,42.24251664,197.18,196.96,0.86687534]
[1738538799051,3.21,197.17,196.99,42.24251664]
[1738538799260,42.24251664,197.26,197.03,42.24251664]
[1738538799454,3.21,197.28,197.07,42.24251664]
[1738538799767,42.24251664,197.08,196.86,42.24251664]
[1738538800061,42.24251664,197.04,196.87,0.86763575]
[1738538800258,42.24251664,197.04,196.83,0.86827407]
[1738538800464,42.24251664,197.04,196.94,0.03886209]
[1738538800962,0.034965,196.95,196.94,0.03886209]
[1738538801167,6.5e-05,196.95,196.94,0.03886209]
[1738538801458,12.1323,197.07,196.9,42.24251664]
[1738538801660,42.24251664,197.16,196.94,42.24251664]
[1738538801858,42.24251664,197.08,196.86,42.24251664]
[1738538802059,42.24251664,197.03,196.82,3.0761]
[1738538802261,2.9405,197.02,196.93,5.0786]
[1738538802669,2.859e-05,196.94,196.91,0.03763186]
[1738538802862,2.859e-05,196.94,196.92,5.0789]
[1738538803165,42.24251664,197.11,196.88,42.24251664]
[1738538803468,42.24251664,197.02,196.84,42.24251664]
[1738538803663,42.24251664,197.02,196.81,3.0761]
[1738538803664,42.24251664,197.11,196.88,42.24251664]
[1738538803966,5.0747,197.09,196.99,5.077]
[1738538804461,0.03484474,197.01,196.96,5.0777]
[1738538804671,0.03484474,197.01,196.81,3.0761]
[1738538804871,3.0971,197.02,196.81,3.0761]
[1738538805161,42.24251664,196.94,196.75,42.24251664]
[1738538805360,42.24251664,196.9,196.76,0.8811855]
[1738538805559,5.0793,196.91,196.77,5.0826]
[1738538805771,42.24251664,196.98,196.79,42.24251664]
[1738538806067,42.24251664,196.94,196.75,42.24251664]
[1738538806271,42.24251664,196.9,196.71,42.24251664]
[1738538806457,42.24251664,196.9,196.67,42.24251664]
[1738538806458,3.109,196.89,196.67,42.24251664]
[1738538806661,0.03879317,196.86,196.83,0.0379538]
[1738538807069,3.109,196.89,196.71,42.24251664]
[1738538807469,0.035746,196.86,196.83,0.03515941]
[1738538807660,42.27826264,196.86,196.83,5.941e-05]
[1738538807862,9.4631,196.85,196.64,0.88276309]
[1738538808067,51.70561664,196.85,196.63,120.01936487]
[1738538808263,5.0827,196.78,196.68,5.085]
[1738538808464,9.4631,196.85,196.63,77.77684823]
[1738538808465,42.24251664,196.77,196.63,77.77684823]
[1738538808667,3.109,196.76,196.63,77.77684823]
[1738538808881,42.24251664,196.73,196.63,77.77684823]
[1738538809170,0.03866987,196.72,196.68,0.0376606]
[1738538809876,5.12286987,196.72,196.68,0.0376606]
[1738538810070,0.03866987,196.72,196.68,0.0376606]
[1738538810263,6.987e-05,196.72,196.68,0.0376606]
[1738538810464,6.987e-05,196.72,196.7,5.0843]
[1738538810771,42.24251664,196.95,196.69,42.24251664]
[1738538811074,0.93377894,196.94,196.76,42.24251664]
[1738538811369,12.5904,197.0,196.8,42.24251664]
[1738538811672,5.0793,196.91,196.78,5.0823]
[1738538811871,42.24251664,196.87,196.69,3.1746]
[1738538812173,3.1834,196.86,196.67,3.2651]
[1738538812366,42.24251664,196.78,196.6,42.24251664]
[1738538812560,42.24251664,196.74,196.53,6.3635]
[1738538812761,0.03272404,196.71,196.54,0.88545107]
[1738538813164,0.03272404,196.71,196.56,42.24251664]
[1738538813366,3.1834,196.73,196.57,0.88545107]
[1738538813971,8.96e-05,196.67,196.64,42.24251664]
[1738538814371,8.96e-05,196.67,196.66,5.0856]
[1738538814567,42.24251664,196.79,196.57,42.24251664]
[1738538814766,3.1834,196.84,196.53,6.3635]
[1738538814767,47.32621664,196.74,196.63,5.0863]
[1738538814966,47.32621664,196.74,196.53,48.60601664]
[1738538814967,3.1834,196.73,196.53,48.60601664]
[1738538815164,3.1834,196.73,196.58,42.24251664]
[1738538815364,0.03407728,196.7,196.68,5.085]
[1738538815564,42.24251664,196.83,196.67,0.0386198]
[1738538815968,3.1808,196.84,196.54,0.88821555]
[1738538815969,42.27685175,196.71,196.54,0.88821555]
[1738538816165,42.24251664,196.71,196.53,6.3635]
[1738538816366,3.1808,196.7,196.58,5.0877]
[1738538816572,0.03297723,196.64,196.6,0.03723267]
[1738538817164,7.723e-05,196.64,196.6,0.03723267]
[1738538817475,7.723e-05,196.64,196.62,47.32891664]
[1738538817775,1.01615689,196.82,196.62,42.24251664]
[1738538817972,42.24251664,196.83,196.74,5.0834]
[1738538818177,42.24251664,196.79,196.61,6.3555]
[1738538818873,42.24251664,196.83,196.61,6.3555]
[1738538819070,1.298e-05,196.72,196.68,0.0386887]
[1738538819380,6.4883,196.93,196.7,42.24251664]
[1738538819672,42.24251664,196.83,196.67,2.9944]
[1738538820074,42.24251664,196.83,196.61,6.3555]
[1738538820378,3.2716,196.82,196.77,5.0827]
[1738538820678,3.2716,196.82,196.67,42.24251664]
[1738538820679,5.817e-05,196.74,196.7,0.03760778]
[1738538820874,3.2716,196.91,196.84,5.081]
[1738538821078,45.51411664,196.91,196.72,42.24251664]
[1738538821276,0.93389811,196.9,196.71,6.1651]
[1738538821481,42.24251664,196.83,196.64,42.24251664]
[1738538821679,42.24251664,196.83,196.62,3.0989]
[1738538821879,42.24251664,196.87,196.64,42.24251664]
[1738538822080,3.2716,196.91,196.76,42.24251664]
[1738538822279,1.01564086,196.92,196.8,42.24251664]
[1738538822479,1.01564086,196.92,196.61,6.3555]
[1738538822480,42.24251664,196.92,196.72,42.24251664]
[1738538822781,42.27660049,196.88,196.64,42.24251664]
[1738538822986,5.0818,196.81,196.71,5.0842]
[1738538823180,12.6683,196.87,196.8,0.03380578]
[1738538823582,25.9878432,197.1,196.8,0.03380578]
[1738538823583,42.24251664,196.94,196.8,0.03380578]
[1738538823885,42.24251664,196.94,196.76,42.24251664]
[1738538824187,3.0496,197.0,196.85,0.03339251]
[1738538824384,42.24251664,196.94,196.85,0.03339251]
[1738538824586,42.24251664,196.9,196.68,42.24251664]
[1738538824878,42.24251664,196.86,196.64,42.24251664]
[1738538825178,5.9504,196.93,196.62,3.0989]
[1738538825179,5.9504,196.93,196.72,42.24251664]
[1738538825388,5.9504,196.93,196.73,3.1646]
[1738538825685,5.9504,196.93,196.8,42.24251664]
[1738538825882,3.0496,197.0,196.8,42.24251664]
[1738538826082,9.1032,197.09,196.88,42.24251664]
[1738538826282,3.1528,197.09,196.92,42.24251664]
[1738538826483,3.1528,197.09,196.89,12.734]
[1738538826685,42.24251664,197.03,196.82,6.5409]
[1738538826988,42.24251664,196.99,196.8,6.1931]
[1738538827181,42.24251664,197.03,196.8,3.1646]
[1738538827382,0.93336396,197.02,196.8,6.1931]
[1738538827688,42.24251664,197.07,196.85,42.24251664]
[1738538827882,0.9331248,197.06,196.89,42.24251664]
[1738538828187,3.1528,197.09,196.89,42.28096313]
[1738538828687,42.24251664,196.95,196.8,3.1646]
[1738538828892,9.2272,196.94,196.75,42.24251664]
[1738538829290,9.2272,196.94,196.79,42.24251664]
[1738538829587,8.788e-05,196.86,196.83,42.2755971]
[1738538829789,42.24251664,197.23,196.83,42.2755971]
[1738538829790,3.8851316,197.04,196.98,5.0773]
[1738538830088,2.9519,197.04,196.84,11.9789]
[1738538830283,2.9519,197.04,196.85,42.24251664]
[1738538830484,42.24251664,197.08,196.85,42.24251664]
[1738538830690,42.24251664,197.08,196.6,15.261]
[1738538830691,42.24251664,197.0,196.77,42.24251664]
[1738538830889,5.0773,196.99,196.88,5.0798]
[1738538831084,0.03240582,196.98,196.77,42.24251664]
[1738538831285,0.03240582,196.98,196.81,42.24251664]
[1738538831486,0.03240582,196.98,196.88,5.0797]
[1738538831685,42.24251664,197.04,196.82,6.2309]
[1738538831887,45.43131664,197.08,196.89,42.24251664]
[1738538832190,0.93316327,197.07,196.85,42.24251664]
[1738538832484,42.24251664,196.96,196.82,2.9722]
[1738538832684,0.03279644,197.0,196.82,2.9722]
[1738538832881,0.03279644,197.0,196.85,42.24251664]
[1738538833087,42.24251664,197.05,196.94,0.03364536]
[1738538833591,42.24251664,197.01,196.94,0.03364536]
[1738538833792,3.1842,197.0,196.94,0.03364536]
[1738538834287,0.03376644,197.01,196.92,42.24251664]
[1738538834495,6.644e-05,197.01,196.95,0.03670023]
[1738538834689,6.644e-05,197.01,196.99,5.077]
[1738538834886,3.1842,197.1,196.95,0.03670023]